bitfinex/quotes_SOLUSD_20251207
["timestamp","ask_amount","ask_price","bid_price","bid_amount"]
[1765129757922,7.40906002,134.97,134.9,8.11289844]
[1765129758080,6.2222069,134.95,134.9,8.11289844]
[1765129758386,25.9278465,134.99,134.89,7.61343744]
[1765129758387,6.2222069,134.93,134.89,7.61343744]
[1765129758598,6.2222069,134.92,134.89,0.2]
[1765129759900,8.80994492,134.98,134.89,7.6133564]
[1765129760209,6.2222069,134.91,134.89,0.2]
[1765129760410,6.2222069,134.9,134.89,0.2]
[1765129761494,8.80994492,134.95,134.89,0.2]
[1765129761495,6.2222069,134.92,134.89,0.2]
[1765129762008,8.3,134.95,134.89,7.61333585]
[1765129762304,6.2222069,134.93,134.89,8.29333585]
[1765129762512,6.2222069,134.92,134.89,8.29333585]
[1765129762684,6.2222069,134.92,134.89,0.2]
[1765129762885,6.2222069,134.91,134.89,0.2]
[1765129763714,6.2222069,134.9,134.89,0.2]
[1765129764299,6.2222069,134.91,134.89,0.2]
[1765129764500,6.2222069,134.92,134.89,0.2]
[1765129764906,6.2222069,134.93,134.89,7.61332524]
[1765129765104,6.2222069,134.93,134.89,8.29332524]
[1765129765308,6.2222069,134.92,134.89,0.2]
[1765129765724,6.2222069,134.91,134.89,0.2]
[1765129765923,16.22119519,134.93,134.89,0.2]
[1765129766117,6.2222069,134.91,134.89,0.2]
[1765129766507,6.2222069,134.9,134.89,0.2]
[1765129767018,16.22119519,134.93,134.89,0.2]
[1765129767231,6.2222069,134.92,134.89,0.2]
[1765129767603,6.2222069,134.92,134.89,7.61309316]
[1765129768414,6.2222069,134.93,134.89,7.61309316]
[1765129768824,6.2222069,134.93,134.89,8.29309316]
[1765129769228,6.2222069,134.92,134.89,7.61309316]
[1765129769429,15.71077826,134.94,134.89,0.2]
[1765129769618,6.2222069,134.91,134.89,0.2]
[1765129771203,8.80994492,134.93,134.89,0.2]
[1765129771408,6.2222069,134.92,134.89,7.61340406]
[1765129772511,6.2222069,134.9,134.89,0.2]
[1765129772714,23.33215182,134.9,134.89,0.2]
[1765129773024,17.10994492,134.9,134.89,0.2]
[1765129773330,23.33215182,134.9,134.89,0.2]
[1765129774217,30.74505026,134.9,134.89,0.2]
[1765129774626,49.27729636,134.9,134.82,7.41729603]
[1765129774824,6.2222069,134.84,134.82,7.41729603]
[1765129775419,6.2222069,134.84,134.82,8.09729603]
[1765129775612,6.2222069,134.84,134.81,7.41769529]
[1765129775808,6.2222069,134.84,134.81,8.09769529]
[1765129776128,6.2222069,134.84,134.82,8.09727187]
[1765129776712,6.2222069,134.84,134.81,7.41779366]
[1765129777313,6.2222069,134.84,134.81,8.09779366]
[1765129777828,6.2222069,134.84,134.81,7.41779366]
[1765129778027,6.2222069,134.83,134.8,7.41831345]
[1765129778430,6.2222069,134.82,134.79,7.4188356]
[1765129778638,6.2222069,134.81,134.79,7.4188356]
[1765129779022,6.2222069,134.81,134.78,0.68]
[1765129779216,6.2222069,134.8,134.78,7.4194133]
[1765129779419,8.3,134.82,134.77,0.2]
[1765129779420,6.2222069,134.79,134.77,0.2]
[1765129780355,6.2222069,134.78,134.77,0.2]
[1765129786059,38.06755528,134.89,134.77,8.29993908]
[1765129786346,6.2222069,134.81,134.77,8.29993908]
[1765129786522,6.2222069,134.8,134.77,26.85006151]
[1765129786718,9.66897662,134.8,134.77,26.85006151]
[1765129786935,8.3,134.83,134.78,0.68]
[1765129787139,9.66897662,134.82,134.78,0.68]
[1765129787955,9.66897662,134.84,134.79,9.66897662]
[1765129788335,9.66897662,134.85,134.8,0.68]
[1765129788725,9.66897662,134.84,134.81,7.41784734]
[1765129788986,9.66897662,134.85,134.81,7.41784734]
[1765129789140,9.66897662,134.85,134.81,8.09784734]
[1765129789538,9.66897662,134.85,134.81,7.41784734]
[1765129789743,9.66897662,134.85,134.82,0.68]
[1765129789938,9.66897662,134.85,134.83,7.41674701]
[1765129790133,9.66897662,134.88,134.83,25.95861454]
[1765129790337,17.96897662,134.88,134.84,0.68]
[1765129791251,8.3,134.88,134.84,0.68]
[1765129791453,17.96897662,134.88,134.84,8.09564881]
[1765129791852,25.11880892,134.91,134.84,8.09564881]
[1765129791853,8.80994492,134.91,134.86,9.66897662]
[1765129792139,8.80994492,134.91,134.84,63.71712611]
[1765129792140,9.66897662,134.9,134.85,0.69]
[1765129792336,9.66897662,134.87,134.84,23.72451281]
[1765129792550,9.66897662,134.86,134.84,7.41564881]
[1765129792933,9.66897662,134.86,134.84,8.10564881]
[1765129793336,9.66897662,134.9,134.86,7.41509713]
[1765129793539,9.66897662,134.91,134.86,25.95283997]
[1765129793749,17.96897662,134.92,134.87,0.69]
[1765129793934,9.66897662,134.92,134.87,0.69]
[1765129794456,9.66897662,134.93,134.87,10.35897662]
[1765129794631,17.96897662,134.94,134.89,16.308864]
[1765129795038,17.96897662,134.94,134.9,0.69]
[1765129795549,17.96897662,134.94,134.91,7.41234897]
[1765129795853,10.38897662,134.96,134.91,7.41234897]
[1765129796055,9.66897662,134.96,134.92,0.7]
[1765129796436,17.96897662,134.97,134.92,0.7]
[1765129796652,9.66897662,134.98,134.92,26.67784062]
[1765129797041,9.66897662,134.97,134.93,0.7]
[1765129797240,9.66897662,134.95,134.92,16.308864]
[1765129797436,9.66897662,134.95,134.92,24.42028467]
[1765129797636,9.66897662,134.95,134.92,16.308864]
[1765129797835,9.66897662,134.94,134.91,7.41225215]
[1765129798058,9.66897662,134.94,134.91,8.11225215]
[1765129798256,9.66897662,134.95,134.92,7.41179281]
[1765129799543,9.66897662,134.95,134.91,8.11219011]
[1765129799749,9.66897662,134.94,134.91,8.11219011]
[1765129800364,7.40961529,134.96,134.87,10.36897662]
[1765129800365,10.37897662,134.93,134.87,10.36897662]
[1765129800660,9.66897662,134.92,134.89,7.41305758]
[1765129800963,9.66897662,134.91,134.89,23.72192158]
[1765129801163,16.21956021,134.96,134.91,7.41208527]
[1765129801164,8.80994492,134.95,134.91,7.41208527]
[1765129801348,8.80994492,134.96,134.91,7.41208527]
[1765129801683,0.71,134.96,134.91,18.53087243]
[1765129801845,9.66897662,134.93,134.9,7.41289844]
[1765129802471,9.66897662,134.95,134.91,0.7]
[1765129802973,9.66897662,134.94,134.9,25.94514454]
[1765129803181,9.66897662,134.93,134.9,7.41289844]
[1765129803345,9.66897662,134.92,134.89,23.72219382]
[1765129803540,9.66897662,134.92,134.88,7.41382764]
[1765129803765,9.66897662,134.91,134.88,8.11382764]
[1765129804008,10.37897662,134.92,134.88,8.11382764]
[1765129804467,10.37897662,134.91,134.88,7.41382764]
[1765129804665,9.66897662,134.91,134.88,7.41382764]
[1765129805476,10.37897662,134.92,134.88,7.41382764]
[1765129805773,10.37897662,134.92,134.86,7.41502321]
[1765129805774,9.66897662,134.89,134.86,7.41502321]
[1765129805954,9.66897662,134.88,134.86,7.41502321]
[1765129806157,17.96897662,134.91,134.87,0.7]
[1765129806876,9.66897662,134.9,134.86,25.95276605]
[1765129807049,9.66897662,134.9,134.87,0.7]
[1765129808088,9.66897662,134.92,134.88,7.41399762]
[1765129808270,9.66897662,134.91,134.88,7.41399762]
[1765129808467,9.66897662,134.9,134.87,7.41437631]
[1765129809070,10.37897662,134.91,134.87,8.11437631]
[1765129809788,17.96897662,134.92,134.88,0.7]
[1765129809991,0.71,134.95,134.89,9.66897662]
[1765129810192,9.66897662,134.95,134.9,0.7]
[1765129810403,0.1,135.03,134.94,9.66897662]
[1765129810600,9.66897662,135.01,134.95,17.96897662]
[1765129811099,9.66897662,135.0,134.96,0.7]
[1765129811309,9.66897662,135.0,134.94,9.66897662]
[1765129811590,9.66897662,135.0,134.93,7.41105355]
[1765129811591,9.66897662,134.96,134.93,7.41105355]
[1765129811768,9.66897662,134.95,134.92,7.41161926]
[1765129812284,9.66897662,134.95,134.92,8.11161926]
[1765129812484,9.66897662,134.95,134.92,7.41161926]
[1765129812671,9.66897662,134.94,134.91,7.41220874]
[1765129813073,9.66897662,134.94,134.92,7.41179958]
[1765129813391,8.3,134.97,134.93,23.72007082]
[1765129813582,9.66897662,134.98,134.93,42.94819651]
[1765129813996,9.66897662,134.98,134.94,0.7]
[1765129814275,9.66897662,134.99,134.94,0.7]
[1765129814679,17.96897662,135.0,134.94,10.36897662]
[1765129815085,17.96897662,135.0,134.95,0.7]
[1765129815388,8.90994492,135.03,134.98,16.308864]
[1765129815389,8.4,135.03,134.98,16.308864]
[1765129815594,0.1,135.03,135.02,9.66897662]
[1765129815964,0.1,135.03,135.0,19.17892154]
[1765129816278,9.76897662,135.03,135.0,0.7]
[1765129816678,0.1,135.03,135.0,0.7]
[1765129817503,0.1,135.03,135.02,23.71517417]
[1765129817874,0.1,135.03,135.02,32.71517417]
[1765129818109,8.3,135.1,135.02,32.71517417]
[1765129818110,9.66897662,135.12,135.05,25.11880892]
[1765129818396,9.66897662,135.13,135.07,25.97784062]
[1765129818697,9.66897662,135.13,135.07,16.308864]
[1765129818899,9.66897662,135.13,135.08,0.7]
[1765129819066,9.66897662,135.12,135.08,0.7]
[1765129819692,9.66897662,135.12,135.09,7.40247242]
[1765129820093,9.66897662,135.13,135.09,7.40247242]
[1765129820389,9.66897662,135.14,135.1,0.7]
[1765129820586,0.69,135.19,135.1,17.008864]
[1765129820787,9.66897662,135.16,135.1,17.008864]
[1765129820989,9.66897662,135.16,135.11,0.71]
[1765129821770,9.66897662,135.16,135.12,23.70969289]
[1765129822296,9.66897662,135.19,135.13,0.71]
[1765129822499,9.66897662,135.16,135.12,50.49176512]
[1765129822795,9.66897662,135.16,135.12,31.98969289]
[1765129822995,9.66897662,135.15,135.11,7.40130216]
[1765129823182,9.66897662,135.13,135.11,7.40130216]
[1765129824073,9.66897662,135.14,135.11,7.40130216]
[1765129825304,10.35897662,135.15,135.11,7.40130216]
[1765129825504,9.66897662,135.14,135.11,7.40130216]
[1765129825873,10.35897662,135.13,135.09,23.71120366]
[1765129826296,10.35897662,135.13,135.09,24.42120366]
[1765129826480,9.66897662,135.13,135.09,24.42120366]
[1765129826675,0.69,135.15,135.09,8.11233966]
[1765129826973,9.66897662,135.13,135.08,26.62057151]
[1765129827382,9.66897662,135.13,135.09,0.71]
[1765129827901,10.35897662,135.13,135.08,25.91057151]
[1765129828102,7.39929552,135.15,135.09,0.71]
[1765129828305,10.35897662,135.13,135.08,26.62057151]
[1765129828607,9.66897662,135.13,135.08,36.28954813]
[1765129828781,9.66897662,135.13,135.09,8.11193525]
[1765129829309,0.69,135.12,135.07,16.308864]
[1765129829474,9.66897662,135.11,135.07,16.308864]
[1765129829669,0.69,135.12,135.07,17.018864]
[1765129829891,9.66897662,135.11,135.07,17.018864]
[1765129830197,9.66897662,135.12,135.09,7.40234617]
[1765129830388,0.69,135.13,135.09,7.40234617]
[1765129830389,9.66897662,135.13,135.09,7.40234617]
[1765129830587,16.308864,135.18,135.1,0.71]
[1765129830588,8.97,135.17,135.1,0.71]
[1765129830901,9.66897662,135.16,135.11,42.21368229]
[1765129831083,9.66897662,135.16,135.11,60.16265891]
[1765129831276,17.94897662,135.17,135.12,0.71]
[1765129831878,9.66897662,135.16,135.12,0.71]
[1765129832107,9.66897662,135.16,135.11,23.71024065]
[1765129832108,9.66897662,135.14,135.11,23.71024065]
[1765129832307,9.66897662,135.15,135.11,24.42024065]
[1765129832498,8.28,135.17,135.11,42.21368229]
[1765129832674,17.94897662,135.17,135.11,42.59065891]
[1765129832875,9.66897662,135.15,135.11,32.92168229]
[1765129833395,0.69,135.16,135.11,32.92168229]
[1765129833599,10.35897662,135.16,135.11,32.92168229]
[1765129834401,10.35897662,135.16,135.11,40.32305894]
[1765129834775,10.35897662,135.15,135.11,7.40137665]
[1765129834995,9.66897662,135.14,135.1,7.4019245]
[1765129835391,9.66897662,135.16,135.11,10.37897662]
[1765129835595,9.66897662,135.15,135.11,0.71]
[1765129835797,0.69,135.15,135.11,0.71]
[1765129836695,0.69,135.15,135.12,7.40082889]
[1765129836900,8.97,135.17,135.12,7.40082889]
[1765129837103,18.63897662,135.17,135.13,0.71]
[1765129837307,10.35897662,135.17,135.13,0.71]
[1765129837487,10.35897662,135.17,135.12,25.90290112]
[1765129837805,10.35897662,135.17,135.13,0.71]
[1765129838001,9.66897662,135.17,135.12,26.61290112]
[1765129838207,10.35897662,135.17,135.12,25.90290112]
[1765129838406,0.69,135.16,135.12,26.61290112]
[1765129839187,9.66897662,135.17,135.13,0.71]
[1765129839387,10.35897662,135.17,135.13,0.71]
[1765129839613,0.69,135.19,135.13,0.71]
[1765129839905,9.66897662,135.18,135.13,0.71]
[1765129840109,9.66897662,135.18,135.13,10.37897662]
[1765129840409,0.69,135.17,135.13,10.37897662]
[1765129840731,8.97,135.2,135.14,10.37897662]
[1765129841012,10.35897662,135.19,135.14,10.37897662]
[1765129841185,10.35897662,135.19,135.15,7.39918608]
[1765129842012,0.69,135.18,135.15,7.39918608]
[1765129843315,0.69,135.18,135.14,7.3997336]
[1765129843509,9.66897662,135.17,135.14,7.3997336]
[1765129843687,9.66897662,135.16,135.13,7.40008305]
[1765129843882,10.35897662,135.17,135.13,7.40008305]
[1765129844491,9.66897662,135.19,135.14,0.71]
[1765129844893,0.69,135.19,135.14,10.37897662]
[1765129845494,0.69,135.19,135.15,7.39918608]
[1765129845927,0.69,135.19,135.15,8.10918608]
[1765129846116,10.35897662,135.19,135.15,26.6071513]
[1765129846807,6.90188638,135.18,135.15,7.39918608]
[1765129847001,6.21188638,135.16,135.14,7.39953645]
[1765129847201,6.90188638,135.17,135.11,15.20188638]
[1765129847418,6.21188638,135.17,135.12,25.90209357]
[1765129847802,6.90188638,135.16,135.12,7.40082889]
[1765129848202,0.69,135.15,135.12,7.40082889]
[1765129848526,6.90188638,135.15,135.1,6.21188638]
[1765129848704,6.21188638,135.14,135.09,15.68240144]
[1765129849055,34.17335657,135.17,135.09,15.68240144]
[1765129849056,6.90188638,135.13,135.09,8.11240144]
[1765129849328,6.90188638,135.13,135.09,7.40240144]
[1765129849823,0.69,135.12,135.09,7.40240144]
[1765129852135,6.90188638,135.12,135.09,7.40240144]
[1765129852430,6.90188638,135.12,135.08,7.40282791]
[1765129852631,6.92188638,135.11,135.08,7.40282791]
[1765129853132,0.71,135.1,135.08,7.40282791]
[1765129853435,0.71,135.1,135.04,37.02517034]
[1765129853436,0.71,135.1,135.07,7.40352686]
[1765129853614,6.21188638,135.09,135.04,6.93188638]
[1765129853820,6.21188638,135.09,135.04,23.24075038]
[1765129854030,6.92188638,135.09,135.05,0.72]
[1765129854333,0.71,135.09,135.05,0.72]
[1765129854715,0.71,135.09,135.05,26.63632727]
[1765129856035,6.92188638,135.09,135.05,26.63632727]
[1765129856639,0.66,135.08,135.05,25.91632727]
[1765129857717,0.66,135.08,135.05,26.63632727]
[1765129858040,0.66,135.08,135.05,7.40466493]
[1765129859350,0.66,135.11,135.06,0.72]
[1765129859645,6.21188638,135.1,135.06,0.72]
[1765129860051,0.66,135.09,135.06,0.72]
[1765129860420,0.66,135.09,135.07,7.40356852]
[1765129861428,0.66,135.09,135.06,7.40411668]
[1765129862846,6.21188638,135.12,135.07,6.93188638]
[1765129863019,0.66,135.12,135.08,6.21188638]
[1765129863219,0.66,135.11,135.07,6.93188638]
[1765129863438,0.66,135.11,135.07,0.72]
[1765129863939,0.66,135.11,135.06,25.9144084]
[1765129864136,6.21188638,135.1,135.06,26.6344084]
[1765129864444,6.21188638,135.1,135.06,25.9144084]
[1765129864644,0.66,135.11,135.05,7.40458005]
[1765129864645,6.21188638,135.08,135.05,7.40458005]
[1765129864812,6.21188638,135.08,135.02,7.40631017]
[1765129864813,6.21188638,135.07,135.02,7.40631017]
[1765129865020,6.87188638,135.07,135.02,32.13397199]
[1765129865331,0.66,135.06,135.03,0.72]
[1765129865947,6.87188638,135.08,135.03,0.72]
[1765129866130,0.66,135.07,135.03,0.72]
[1765129867046,0.66,135.07,135.04,7.40521327]
[1765129867628,6.21188638,135.06,135.0,19.23787736]
[1765129867828,6.21188638,135.05,135.0,19.23787736]
[1765129868035,6.21188638,135.04,135.02,7.4062185]
[1765129868237,6.21188638,135.04,135.01,7.40666611]
[1765129868437,6.87188638,135.04,135.02,7.40611959]
[1765129868631,0.66,135.04,135.02,7.40611959]
[1765129869151,0.66,135.04,135.01,7.40685875]
[1765129869527,6.87188638,135.04,135.0,7.40736523]
[1765129869759,6.21188638,135.03,134.99,7.40788118]
[1765129869950,6.87188638,135.03,134.99,7.40788118]
[1765129870130,6.87188638,135.02,134.99,7.40788118]
[1765129870647,0.66,135.01,134.99,7.40788118]
[1765129871043,0.66,135.01,134.98,7.40850496]
[1765129871228,6.87188638,135.01,134.98,7.40850496]
[1765129871650,0.66,135.0,134.98,7.40850496]
[1765129871826,6.87188638,135.01,134.98,7.40850496]
[1765129872156,0.66,135.01,134.98,7.40850496]
[1765129873029,0.66,135.01,134.97,7.60888622]
[1765129873030,6.21188638,135.0,134.97,7.60888622]
[1765129873448,0.66,134.99,134.97,7.60888622]
[1765129874043,0.66,134.99,134.97,0.2]
[1765129874229,6.21188638,134.98,134.97,0.2]
[1765129874636,15.6818313,134.98,134.97,0.2]
[1765129875142,6.87188638,134.98,134.97,0.2]
[1765129878354,14.28039134,134.98,134.97,0.2]
[1765129878730,6.87188638,134.98,134.97,0.2]
[1765129878932,0.66,134.98,134.97,0.2]
[1765129879953,6.87188638,134.98,134.97,0.2]
[1765129880256,15.15188638,134.98,134.97,0.2]
[1765129881030,14.49188638,134.98,134.97,0.2]
[1765129881231,6.21188638,135.0,134.97,0.85]
[1765129881432,6.89188638,135.01,134.97,8.25905386]
[1765129881854,0.68,135.0,134.97,7.60905386]
[1765129882252,6.89188638,135.0,134.97,7.60905386]
[1765129882856,6.21188638,134.98,134.97,0.2]
[1765129883062,8.96,134.99,134.97,0.2]
[1765129883257,0.68,134.98,134.97,0.2]
[1765129883447,6.89188638,134.98,134.97,0.2]
[1765129883645,23.11033626,134.98,134.97,0.2]
[1765129883857,23.11033626,134.98,134.92,0.2]
[1765129883858,25.11880892,134.97,134.92,0.2]
[1765129884070,6.21188638,134.93,134.92,0.2]
[1765129884252,6.21188638,134.94,134.92,0.2]
[1765129884644,6.89188638,134.95,134.92,0.2]
[1765129885039,6.21188638,134.95,134.92,8.26163509]
[1765129885267,8.28,134.95,134.92,8.26163509]
[1765129886661,8.28,134.95,134.93,6.86188638]
[1765129886965,8.28,134.97,134.93,6.86188638]
[1765129887462,8.08854928,134.98,134.92,7.61163509]
[1765129887463,6.89188638,134.98,134.94,0.65]
[1765129887647,0.68,134.97,134.93,8.06087664]
[1765129887849,8.96,134.97,134.93,8.06087664]
[1765129888065,8.96,134.97,134.93,0.65]
[1765129888467,0.68,134.96,134.93,7.41117242]
[1765129888665,8.28,134.97,134.93,8.06117242]
[1765129888963,8.96,134.97,134.94,7.41067538]
[1765129889341,8.96,134.97,134.93,7.41108058]
[1765129889342,8.28,134.97,134.93,7.41108058]
[1765129889755,8.96,134.97,134.93,14.27296696]
[1765129890065,16.36913954,134.97,134.93,14.27296696]
[1765129890363,8.96,134.97,134.93,14.27296696]
[1765129890557,8.08700312,135.01,134.96,6.21188638]
[1765129890758,8.96,135.01,134.97,6.21188638]
[1765129891086,8.96,135.01,134.98,6.21188638]
[1765129891087,8.28,135.01,134.98,6.21188638]
[1765129891377,8.28,135.01,134.97,6.21188638]
[1765129891543,15.68695169,135.01,134.97,6.21188638]
[1765129891743,16.36695169,135.01,134.97,6.21188638]
[1765129891943,16.36695169,135.01,134.97,6.86188638]
[1765129892205,16.36695169,135.01,134.97,14.27074301]
[1765129892475,15.68695169,135.01,134.97,13.62074301]
[1765129892843,8.96,135.01,134.97,14.27074301]
[1765129893944,8.96,135.01,134.98,6.21188638]
[1765129894182,8.28,135.01,134.99,6.21188638]
[1765129894470,8.28,135.01,134.98,6.86188638]
[1765129894671,8.28,135.01,134.98,2.974871]
[1765129895569,8.28,135.01,134.99,7.40795614]
[1765129895740,8.28,135.01,134.99,10.38282714]
[1765129895940,8.28,135.01,135.0,0.65]
[1765129896543,8.28,135.01,134.99,9.73282714]
[1765129896746,8.28,135.01,134.99,14.28405695]
[1765129897947,15.68688541,135.01,134.97,6.22610081]
[1765129898147,0.68,135.0,134.96,13.63570365]
[1765129898345,0.68,135.0,134.96,14.28570365]
[1765129899248,8.08743865,135.0,134.96,14.28570365]
[1765129899756,6.90610081,134.99,134.94,7.41030355]
[1765129899957,6.90610081,134.99,134.91,18.53028499]
[1765129899958,6.22610081,134.97,134.92,13.83743412]
[1765129900152,6.22610081,134.97,134.93,7.4111677]
[1765129900356,0.68,134.96,134.93,7.4111677]
[1765129900757,17.08994492,134.98,134.93,13.63726851]
[1765129900955,8.28,134.99,134.96,6.22610081]
[1765129901262,8.28,134.99,134.97,13.63496882]
[1765129901747,8.28,134.99,134.96,13.63555656]
[1765129902273,8.28,134.99,134.97,13.63507664]
[1765129902458,8.28,134.99,134.97,14.28507664]
[1765129902656,8.28,134.99,134.97,8.05897583]
[1765129903042,8.28,134.99,134.97,7.40897583]
[1765129904156,8.28,135.02,134.98,6.87610081]
[1765129904449,8.28,135.02,134.99,6.22610081]
[1765129904772,8.28,135.02,134.98,6.87610081]
[1765129904967,8.96,135.02,134.98,6.87610081]
[1765129905149,16.36631646,135.02,134.98,8.05831574]
[1765129906380,6.90610081,135.01,134.96,6.22610081]
[1765129906561,6.90610081,135.01,134.96,7.40943512]
[1765129906761,0.68,135.0,134.96,7.40943512]
[1765129906955,0.68,135.0,134.96,8.05943512]
[1765129907360,0.68,135.03,134.98,6.22610081]
[1765129907562,8.28,135.02,134.98,6.22610081]
[1765129907867,8.28,135.02,134.98,6.87610081]
[1765129908193,8.96,135.02,134.98,6.87610081]
[1765129908398,8.96,135.02,134.99,7.40795614]
[1765129912696,16.36634575,135.02,134.98,17.69546831]
[1765129912867,16.36634575,135.02,134.98,8.05833362]
[1765129913070,10.31713469,135.01,134.95,26.59599869]
[1765129913272,7.4074074,135.0,134.96,7.40925487]
[1765129913679,8.96,134.99,134.96,7.40925487]
[1765129914074,0.68,134.98,134.95,7.40996339]
[1765129914279,8.28,134.99,134.95,17.04726581]
[1765129914681,8.96,134.99,134.95,17.69726581]
[1765129915403,0.68,134.98,134.95,7.41013112]
[1765129915593,0.68,134.98,134.94,17.0477682]
[1765129915890,0.68,134.98,134.94,9.63713469]
[1765129916092,0.68,134.98,134.94,17.76750019]
[1765129916473,8.28,134.99,134.96,9.63713469]
[1765129917266,8.28,134.99,134.96,10.35713469]
[1765129917488,8.28,134.99,134.96,17.76658884]
[1765129917987,8.28,135.0,134.97,0.72]
[1765129918298,8.28,135.0,134.96,17.04658884]
[1765129918491,8.08695943,135.01,134.96,17.76658884]
[1765129919003,8.28,135.0,134.96,17.76658884]
[1765129919703,8.96,135.0,134.96,17.76658884]
[1765129921073,7.40695943,135.01,134.96,17.04658884]
[1765129921274,10.31713469,135.04,134.98,9.63713469]
[1765129921491,8.28,135.03,134.99,9.63713469]
[1765129921683,16.36592018,135.03,134.97,26.65135409]
[1765129921968,16.36592018,135.03,134.98,10.35713469]
[1765129922498,0.68,135.02,134.98,10.35713469]
[1765129922694,19.12707961,135.02,134.97,7.40871944]
[1765129922998,9.48994492,135.02,134.98,0.72]
[1765129923193,7.40685875,135.01,134.98,0.72]
[1765129923399,8.28,135.0,134.98,0.72]
[1765129923573,8.28,135.0,134.97,17.04585413]
[1765129923775,0.68,134.99,134.96,17.04659658]
[1765129923971,8.28,135.0,134.96,17.76659658]
[1765129924175,8.96,135.0,134.96,17.76659658]
[1765129924382,8.96,135.0,134.97,7.40889243]
[1765129924579,0.68,135.03,134.98,17.04546195]
[1765129924785,8.28,135.02,134.99,9.63713469]
[1765129924991,8.28,135.02,134.99,10.35713469]
[1765129925373,8.28,135.02,134.99,17.76496378]
[1765129926305,22.24776595,135.08,134.99,17.76496378]
[1765129926306,0.68,135.09,135.01,9.63713469]
[1765129926486,8.28,135.1,135.06,9.63713469]
[1765129926803,10.31713469,135.09,135.02,8.28]
[1765129927010,10.31713469,135.09,135.03,9.63713469]
[1765129927301,7.40356852,135.07,135.03,17.04277452]
[1765129927492,18.44707961,135.06,135.01,7.40666117]
[1765129927689,19.12707961,135.06,135.01,7.40666117]
[1765129927883,0.68,135.05,135.01,7.40666117]
[1765129928085,8.28,135.04,135.01,7.40666117]
[1765129928286,8.28,135.04,135.01,17.04379586]
[1765129928596,8.28,135.04,135.02,7.40618002]
[1765129928995,8.28,135.04,135.01,17.76377863]
[1765129929802,16.36536632,135.04,135.0,17.04448811]
[1765129929995,16.36536632,135.04,135.0,17.76448811]
[1765129930613,8.28,135.04,135.01,7.40673319]
[1765129931206,8.96,135.04,135.01,7.40673319]
[1765129931391,8.28,135.04,135.02,0.72]
[1765129931586,0.68,135.06,135.02,10.35713469]
[1765129931791,0.68,135.08,135.04,9.63713469]
[1765129932010,8.28,135.07,135.04,9.63713469]
[1765129932206,8.28,135.07,135.04,10.35713469]
[1765129932512,8.28,135.07,135.05,0.72]
[1765129933092,7.40257824,135.09,135.05,0.72]
[1765129933304,8.08257824,135.09,135.05,8.12458452]
[1765129933494,8.28,135.08,135.05,17.76171921]
[1765129933694,8.28,135.08,135.06,0.72]
[1765129933913,8.28,135.08,135.05,17.04171921]
[1765129934128,8.28,135.08,135.05,17.76171921]
[1765129935102,8.28,135.08,135.06,10.35713469]
[1765129935507,8.28,135.08,135.06,17.04102936]
[1765129936430,8.08157106,135.11,135.07,10.35713469]
[1765129936620,9.63713469,135.09,135.04,9.63713469]
[1765129936812,9.63713469,135.09,135.04,17.04200987]
[1765129937014,0.68,135.08,135.04,17.76200987]
[1765129937408,0.68,135.08,135.05,0.72]
[1765129937621,0.68,135.08,135.05,8.12460906]
[1765129937822,8.28,135.07,135.03,9.63713469]
[1765129938201,0.68,135.06,135.03,9.63713469]
[1765129938436,0.68,135.06,135.02,28.1522616]
[1765129938637,0.68,135.06,135.03,7.40562246]
[1765129938826,0.68,135.06,135.02,17.76323964]
[1765129939184,0.68,135.06,135.03,7.40570335]
[1765129940127,0.68,135.06,135.03,17.04283804]
[1765129941633,8.28,135.07,135.03,17.75283804]
[1765129941831,16.40375765,135.07,135.03,17.75283804]
[1765129942002,16.40375765,135.07,135.01,10.34713469]
[1765129942003,9.52994492,135.06,135.01,10.34713469]
[1765129942208,19.16707961,135.06,135.0,9.63713469]
[1765129942410,0.72,135.05,135.0,9.63713469]
[1765129942598,8.28,135.04,135.0,9.63713469]
[1765129942803,17.91713469,135.04,134.98,10.34713469]
[1765129943010,0.72,135.03,134.99,7.40787833]
[1765129943433,9.63713469,135.01,134.97,7.40866844]